[Event "GER-chT States Women 2022"]
[Site "Braunfels"]
[Date "2022.06.17"]
[Round "2.1"]
[White "Cosma, Elena-Luminita"]
[Black "Tuzi, Bruna"]
[Result "1/2-1/2"]
[ECO "D02"]
[WhiteElo "2277"]
[BlackElo "1999"]
[Annotator "TA"]
[PlyCount "37"]
[EventDate "2022.06.15"]
[EventType "swiss"]
[EventCountry "GER"]
[SourceTitle "playchess.com"]
[Source "ChessBase"]
[SourceQuality "1"]
[TimeControl "40/5400+30:1800+30"]

{[%evp 9,37,-2,18,8,9,7,16,0,59,61,46,39,54,16,31,0,0,0,0,0,11,0,29,-55,-63,-83,-89,-95,-82,-86]} 1. d4 {[%emt 0:00:03]} d5 {[%emt 0:00:07]} 2. Nf3 {[%emt 0:00:07]} Nf6 {[%emt 0:00:59]} 3. g3 {[%emt 0:00:07]} Bg4 {[%emt 0:00:51]} 4. Bg2 {[%emt 0:00:13]} e6 {[%emt 0:00:26]} 5. h3 {[%emt 0:01:55]} Bf5 {[%emt 0:00:37]} 6. c4 {[%emt 0:00:17][%cal Bc2c4,Bc4c5][%mdl 32] D02: 1 d4 d5 2 Nf3 sidelines, including 2...Nf6 3 g3 and 2...Nf6 3 Bf4.} c6 {[%emt 0:03:38]} 7. Nc3 {[%emt 0:00:22]} Be7 {[%emt 0:00:49] [#]} 8. Nh4 $146 {[%emt 0:04:48] The position is equal.} ({Predecessor:} 8. Qb3 Qb6 9. c5 Qa6 10. Bf1 Be4 11. e3 Qa5 12. Be2 Qc7 13. Nxe4 Nxe4 14. O-O {½-½ (69) Samunenkov,I (2288)-Laurusas,T (2549) Riga 2021}) 8... Bg6 {[%emt 0:00:24]} ({Black should try} 8... Be4 $11) 9. Nxg6 $14 {[%emt 0:01:32]} hxg6 {[%emt 0:00:07]} 10. Qb3 {[%emt 0:02:15]} Qb6 {[%emt 0:02:38]} 11. c5 {[%emt 0:01:01]} Qa6 {[%emt 0:00:30]} 12. Bf1 {[%emt 0:07:21][%cal Oe2e4]} b6 $1 {[%emt 0:12:11][%cal Bb7b6,Bb6c5,Bc5c4][%mdl 32]} 13. e4 {[%emt 0:04:25]} Qb7 {[%emt 0:00:35]} 14. Bg2 {[%emt 0:03:34]} O-O {[%emt 0:08:42]} 15. O-O {[%emt 0:02:08]} Qa6 {[%emt 0:05:44]} 16. Re1 {[%emt 0:11:28]} ({White should play} 16. cxb6 $11 axb6 17. a4 (17. exd5 exd5 18. Bf4 Nh5 $11)) 16... bxc5 $15 {[%emt 0:07:33]} 17. exd5 {[%emt 0:00:08]} c4 {[%emt 0:00:15]} 18. Qd1 {[%emt 0:01:39]} cxd5 {[%emt 0:00:50]} 19. Nxd5 {Weighted Error Value: White=0.19 (very precise) /Black=0.12 (very precise)} 1/2-1/2

[Event "GER-chT States Women 2022"]
[Site "Braunfels"]
[Date "2022.06.17"]
[Round "2.2"]
[White "Bluebaum, Johanna"]
[Black "Voicu-Jagodzinsky, Carmen"]
[Result "0-1"]
[ECO "D35"]
[WhiteElo "2049"]
[BlackElo "2291"]
[Annotator "TA"]
[PlyCount "82"]
[EventDate "2022.06.15"]
[EventType "swiss"]
[EventCountry "GER"]
[SourceTitle "playchess.com"]
[Source "ChessBase"]
[SourceQuality "1"]
[TimeControl "40/5400+30:1800+30"]

{[%evp 13,82,19,22,20,22,8,18,13,25,16,17,16,14,7,10,7,44,47,54,22,66,66,121,104,158,50,64,56,120,108,106,29,50,33,52,45,93,65,72,-68,116,-57,-56,-77,-81,-110,-54,-77,-84,-95,-91,-172,-96,-171,-164,-171,-172,-214,-214,-297,-284,-365,-381,-456,-371,-843,-841,-912,-878,-1478,-1381]} 1. d4 {[%emt 0:07:25]} Nf6 {[%emt 0:01:00]} 2. c4 {[%emt 0:00:07]} e6 {[%emt 0:00:03]} 3. Nc3 {[%emt 0:00:05]} d5 {[%emt 0:00:02]} 4. cxd5 {[%emt 0:00:30]} exd5 {[%emt 0:00:05]} 5. Bg5 {[%emt 0:00:06]} Be7 {[%emt 0:00:15]} 6. e3 {[%emt 0:00:24]} O-O {[%emt 0:00:44]} 7. Bd3 {[%emt 0:00:24]} Re8 {[%emt 0:00:12]} 8. Nge2 {[%emt 0:00:49] D35: Queen's Gambit Declined: Exchange Variation.} h6 {[%emt 0:00:34] 8...c6 is a critical line.} 9. Bh4 {[%emt 0:01:05]} c6 {[%emt 0:00:40]} 10. O-O {[%emt 0:03:23] The position is equal.} Nh5 {[%emt 0:03:32]} 11. Bxe7 {[%emt 0:02:11]} Qxe7 {[%emt 0:00:09] [#]} 12. Bc2 $146 {[%emt 0:18:19]} ({Predecessor:} 12. Qd2 Nd7 13. Rae1 Nf8 14. Nc1 Bd7 15. Nb3 Rad8 16. f3 Bc8 17. Qf2 b6 18. Kh1 {0-1 (67) Bluebaum,M (2681)-Sargissian,G (2596) Riga 2021}) 12... Nd7 {[%emt 0:11:34]} 13. Qd3 {[%emt 0:02:10] [#] White wants to mate with Qh7+.} Nf8 {[%emt 0:00:26] Prevents Qh7+.} 14. Rae1 {[%emt 0:00:50]} g6 {[%emt 0:01:57]} 15. Qd2 {[%emt 0:02:16]} Kh7 {[%emt 0:06:03]} 16. Nc1 {[%emt 0:02:17]} Nf6 {[%emt 0:04:48]} 17. f3 $1 {[%emt 0:02:00][%cal Bf2f3,Bf3f4,Bf4f5][%mdl 32]} c5 {[%emt 0:11:47]} (17... b6 $14) 18. Nd3 $16 {[%emt 0:06:21]} b6 {[%emt 0:03:08]} (18... Ne6 $142) 19. Ne5 {[%emt 0:01:29]} (19. e4 $16) 19... Bb7 {[%emt 0:04:09]} 20. f4 {[%emt 0:08:29]} Rad8 {[%emt 0:03:36]} (20... N8d7 $14) 21. Ba4 {[%emt 0:02:43]} N8d7 {[%emt 0:01:39]} 22. Rf3 {[%emt 0:02:21]} ({White should try} 22. Bc6 $16 Ba6 23. Bxd7 Nxd7 24. Nc6 (24. Nxd5 Qd6 $16)) 22... a6 {[%emt 0:02:44]} 23. Nxd7 {[%emt 0:06:11]} Nxd7 {[%emt 0:00:37]} 24. f5 {[%emt 0:01:42] Black must now prevent Ref1.} (24. dxc5 d4 25. c6 dxc3 26. Qxc3 Nc5 $19) 24... Rf8 {[%emt 0:05:49]} (24... cxd4 $14 {is more appropriate.} 25. Qxd4 (25. fxg6+ fxg6 26. Qxd4 Ne5 $11) 25... b5) 25. Bc2 {[%emt 0:02:09] And now e4 would win.} Nf6 {[%emt 0:00:40] Against e4} 26. Qf2 {[%emt 0:06:50]} (26. fxg6+ $16 fxg6 27. Ref1 (27. Qd3 Ne4 $11)) 26... Rde8 $2 {[%emt 0:03:22]} (26... g5 $15) 27. Rf1 $2 {[%emt 0:02:42]} (27. fxg6+ $16 fxg6 28. Rf1 (28. Qg3 Ne4 $14)) 27... g5 $15 {[%emt 0:01:54]} 28. Nd1 {[%emt 0:02:35]} Qd6 {[%emt 0:02:38]} 29. h3 {[%emt 0:01:44]} Re7 {[%emt 0:01:15]} ({Better is} 29... Rg8 $17) 30. g4 {[%emt 0:02:12]} Rfe8 {[%emt 0:01:44] ...cxd4 is the strong threat. Black is more active.} 31. Bd3 {[%emt 0:00:19]} Bc6 {[%emt 0:02:34]} 32. Qh2 {[%emt 0:09:31]} (32. a3 $17 {was worth a try.}) 32... Qxh2+ $19 {[%emt 0:01:42]} 33. Kxh2 {[%emt 0:00:03] [#]} Bb5 $1 {[%emt 0:00:09]} 34. Bxb5 {[%emt 0:01:39]} axb5 {[%emt 0:00:01][%cal Ba6b5,Bb5b4][%mdl 32]} 35. R3f2 {[%emt 0:03:10]} b4 {[%emt 0:00:19]} 36. Rc2 {[%emt 0:00:26]} c4 {[%emt 0:00:36]} 37. Kg3 {[%emt 0:00:28]} Ra8 {[%emt 0:01:56]} 38. b3 {[%emt 0:01:14]} Ne4+ {[%emt 0:01:32]} 39. Kg2 $2 {[%emt 0:00:08]} (39. Kf3 c3 40. f6) 39... Rea7 {[%emt 0:01:10] Black is clearly winning.} 40. bxc4 {[%emt 0:00:52]} Rxa2 {[%emt 0:00:29]} 41. Rb2 {[%emt 0:30:45]} dxc4 {[%emt 0:30:28] Weighted Error Value: White=0.61/Black=0.23 (precise)} 0-1

[Event "GER-chT States Women 2022"]
[Site "Braunfels"]
[Date "2022.06.17"]
[Round "2.3"]
[White "Agrest, Inna"]
[Black "Buchholz, Maja"]
[Result "1-0"]
[ECO "C11"]
[WhiteElo "2265"]
[BlackElo "1945"]
[Annotator "TA"]
[PlyCount "99"]
[EventDate "2022.06.15"]
[EventType "swiss"]
[EventCountry "GER"]
[SourceTitle "playchess.com"]
[Source "ChessBase"]
[SourceQuality "1"]
[TimeControl "40/5400+30:1800+30"]

{[%evp 15,98,22,20,0,0,12,5,0,4,-32,4,-4,5,0,0,0,0,6,11,0,14,0,10,0,59,56,67,66,62,61,317,340,344,350,341,338,525,538,500,361,361,360,358,334,415,295,433,409,499,493,598,556,520,460,477,472,655,580,830,822,1631,1616,29979,29980,5306,833,752,0,1379,345,424,355,581,635,626,592,612,531,1358,1207,29968,29968,5716,4931,29999]} 1. e4 {[%emt 0:00:03]} e6 {[%emt 0:00:17]} 2. d4 {[%emt 0:00:07]} d5 {[%emt 0:00:06]} 3. Nc3 {[%emt 0:00:05]} Nf6 {[%emt 0:00:14]} 4. Bg5 {[%emt 0:00:24]} dxe4 {[%emt 0:00:25]} 5. Nxe4 {[%emt 0:00:28]} Nbd7 {[%emt 0:00:11]} 6. Nf3 {[%emt 0:01:41]} h6 {[%emt 0:00:16]} 7. Nxf6+ {[%emt 0:04:01]} Nxf6 {[%emt 0:00:19]} 8. Bxf6 {[%emt 0:06:17]} Qxf6 {[%emt 0:00:18]} 9. Bd3 {[%emt 0:00:14] C10: French with 3 Nc3: Unusual Black 3rd moves and 3...dxe4.} Bd7 {[%emt 0:01:11] is more profitable than 9...Bd6 at the moment.} 10. Ne5 {[%emt 0:01:32]} O-O-O {[%emt 0:01:45]} 11. Qe2 {[%emt 0:00:56] [#] The position is equal.} Be8 $146 {[%emt 0:03:43]} ({Predecessor:} 11... c5 12. dxc5 Bxc5 13. O-O Kb8 14. Nxf7 Qxf7 15. Qe5+ Ka8 16. Qxc5 Bc6 17. Qe3 Qf6 {½-½ (39) Koziol,K (2016)-Sumets,A (2633) LLucmajor 2014}) 12. Qe4 {[%emt 0:04:33]} Kb8 {[%emt 0:02:38]} 13. O-O-O {[%emt 0:03:49]} Bd6 {[%emt 0:16:50]} 14. f4 {[%emt 0:22:26]} Qe7 {[%emt 0:08:03]} 15. Rhf1 {[%emt 0:07:41]} c5 {[%emt 0:06:19]} 16. dxc5 {[%emt 0:05:55]} Bxc5 {[%emt 0:00:25]} 17. Be2 {[%emt 0:01:05]} Rc8 {[%emt 0:01:58]} 18. Bf3 {[%emt 0:02:35]} Qc7 {[%emt 0:00:43] Inhibits Nd7+.} 19. Kb1 {[%emt 0:01:59]} Bb5 {[%emt 0:06:27] [#] Against Rd3} (19... f6 $11 20. Nd3 Bb6) 20. a4 $1 $14 {[%emt 0:11:04]} Be8 {[%emt 0:01:17]} (20... Bxf1 $2 21. Rd7 Ka8 22. Rxc7 Rxc7 23. Qe1 $18) 21. Rd3 $36 {[%emt 0:05:34][%cal Bd1d3,Bd3b3,Bb3b7,Bb7e7][%mdl 2080] White has some pressure. 0x0.00166cea7e16dp-1022s more active pieces.} f5 {[%emt 0:12:38]} 22. Qc4 {[%emt 0:00:29] Hoping for Rfd1.} Be7 $2 {[%emt 0:07:39][%mdl 8192] [#] Black is now going downhill.} (22... Bd6 $1 $14 23. Qb3 Bxe5 24. fxe5 g5) 23. Rb3 $1 $18 {[%emt 0:05:42]} Qxc4 {[%emt 0:04:37]} (23... a5 24. c3) 24. Rxb7+ {[%emt 0:00:47]} (24. Nxc4 Rc7 25. Be2 Bxa4 $17) 24... Ka8 {[%emt 0:00:08]} 25. Rxe7+ {[%emt 0:02:25]} (25. Nxc4 Rxc4 26. b3 Bc6) 25... Bc6 {[%emt 0:00:25]} (25... Qd5 $142 26. Bxd5+ exd5) 26. Nxc4 {[%emt 0:02:08]} Bxf3 {[%emt 0:00:29]} 27. Rxf3 {[%emt 0:04:45]} ({Weaker is} 27. gxf3 Rxc4 28. b3 (28. Rxe6 Rxa4 29. Rg1 Rg8 $16) 28... Rxf4 $18) 27... Rxc4 {[%emt 0:00:10][%mdl 4096] Endgame KRR-KRR} 28. b3 {[%emt 0:00:07]} ({Not} 28. Rxe6 Rxa4 29. Re7 g6 $18) 28... Re4 {[%emt 0:00:41]} 29. Rxg7 {[%emt 0:00:15]} Rc8 {[%emt 0:00:56]} 30. Kb2 {[%emt 0:00:15]} Rb8 {[%emt 0:02:52]} (30... Re2 {might work better.} 31. Rc3 Rxc3 32. Kxc3 Rf2) 31. a5 {[%emt 0:01:17] aiming for Rc3.} a6 {[%emt 0:01:36]} 32. g3 {[%emt 0:00:28] Rc3 is the strong threat.} Rb5 {[%emt 0:01:22]} 33. Rc3 {[%emt 0:00:18]} Kb8 {[%emt 0:00:25]} 34. Rh7 {[%emt 0:01:19]} Rxa5 {[%emt 0:00:32]} 35. Rxh6 {[%emt 0:00:05]} Kb7 {[%emt 0:00:11]} 36. h4 {[%emt 0:00:21] And now Rh7+ would win.} Re1 {[%emt 0:00:32]} 37. Rh7+ {[%emt 0:00:50]} Kb6 {[%emt 0:00:37]} 38. Rhc7 {[%emt 0:01:03] Threatening mate with R3c6+.} Raa1 {[%emt 0:00:56]} 39. R3c6+ {[%emt 0:00:19]} Kb5 {[%emt 0:00:07]} 40. Rc5+ {[%emt 0:01:58]} (40. c4+ $142 Ka5 41. Rb7 Rab1+ 42. Kc3 Rec1+ 43. Kd4 e5+ 44. Kd5 Rd1+ 45. Kxe5 Re1+ 46. Kxf5 Re5+ 47. Kg6 Rxb3 48. Rxb3) 40... Kb6 {[%emt 0:00:12]} 41. R5c6+ {[%emt 0:10:03]} (41. h5 $142) 41... Kb5 {[%emt 0:02:30]} 42. Rd6 $2 {[%emt 0:04:12]} (42. c4+ Ka5 43. Rb7 Rab1+ 44. Kc3 Rec1+ 45. Kd4 e5+ 46. Kd5 Rd1+ 47. Kxe5 Rxb3 48. Rxb3) 42... Rab1+ {[%emt 0:08:05]} 43. Kc3 {[%emt 0:00:08]} a5 $2 {[%emt 0:01:00]} (43... Re3+ 44. Rd3 Re4) 44. h5 {[%emt 0:03:44][%cal Bh4h5,Bh5h6,Bh6h7][%mdl 32]} Re3+ {[%emt 0:05:55]} 45. Rd3 {[%emt 0:00:45]} Re2 {[%emt 0:00:30]} 46. h6 {[%emt 0:00:44] Black must now prevent h7.} Ra1 {[%emt 0:02:13]} 47. Kb2 {[%emt 0:01:24]} Ree1 {[%emt 0:02:07]} 48. h7 {[%emt 0:00:44]} Rh1 {[%emt 0:01:08]} 49. Rd8 {[%emt 0:01:19]} Kb4 {[%emt 0:07:24]} 50. Rb8# {[%emt 0:00:34] Weighted Error Value: White=0.17 (very precise) /Black=0.76} 1-0

[Event "GER-chT States Women 2022"]
[Site "Braunfels"]
[Date "2022.06.17"]
[Round "2.4"]
[White "Frank, Michelle Viviane"]
[Black "Ciolacu, Alessia-Mihaela"]
[Result "0-1"]
[ECO "C68"]
[WhiteElo "1882"]
[BlackElo "2198"]
[Annotator "TA"]
[PlyCount "88"]
[EventDate "2022.06.15"]
[EventType "swiss"]
[EventCountry "GER"]
[SourceTitle "playchess.com"]
[Source "ChessBase"]
[SourceQuality "1"]
[TimeControl "40/5400+30:1800+30"]

{[%evp 10,88,29,-4,-2,-6,-4,0,9,7,152,12,13,0,12,25,25,21,39,46,40,-31,-38,-50,-59,-53,-40,-110,-99,-123,-70,-77,-81,-72,-54,-87,-80,-81,-74,-62,-60,-59,-45,-59,-33,-48,-43,-52,-1,-84,-48,-80,-83,-163,-138,-150,-151,-148,-95,-100,-79,-93,-94,-163,-141,-187,-186,-143,0,-268,-111,-488,-483,-638,-554,-538,-535,-520,-512,-382,-368]} 1. e4 {[%emt 0:00:04]} e5 {[%emt 0:00:19]} 2. Nf3 {[%emt 0:00:08]} Nc6 {[%emt 0:00:07]} 3. Bb5 {[%emt 0:00:07]} a6 {[%emt 0:00:18]} 4. Bxc6 {[%emt 0:01:07]} dxc6 {[%emt 0:00:07]} 5. O-O {[%emt 0:00:08]} Bd6 {[%emt 0:03:30]} 6. d3 {[%emt 0:02:22]} Ne7 {[%emt 0:01:41] C68: Ruy Lopez: Exchange Variation, sidelines.} 7. Nbd2 {[%emt 0:00:44]} Ng6 {[%emt 0:02:12]} 8. Nc4 {[%emt 0:00:45]} Bg4 {[%emt 0:06:04] The position is equal.} 9. h3 {[%emt 0:00:10]} h5 {[%emt 0:03:40] [#]} (9... Be6 $11) 10. Ne3 $146 {[%emt 0:00:20] Pair of Knights!} (10. hxg4 $16 hxg4 11. Ng5) ({Predecessor:} 10. hxg4 hxg4 11. Ng5 Qd7 12. Nxd6+ cxd6 13. f4 f6 14. f5 Nf4 15. Bxf4 exf4 16. Ne6 g3 17. Qg4 g5 18. fxg6 {1-0 (18) Hoolt,S (2334)-Morgenstern,T (1971) Playchess.com INT 2020}) 10... Be6 $11 {[%emt 0:08:35]} 11. Nf5 {[%emt 0:03:04]} Bxf5 {[%emt 0:06:52]} 12. exf5 {[%emt 0:00:07]} Nh4 {[%emt 0:00:40]} 13. Re1 {[%emt 0:02:44]} Nxf3+ {[%emt 0:02:08]} 14. Qxf3 {[%emt 0:00:06]} Qf6 {[%emt 0:00:33]} 15. Qg3 {[%emt 0:03:29]} (15. Qe4 $14) 15... Qxf5 $15 {[%emt 0:01:38]} 16. Qxg7 {[%emt 0:04:26]} O-O-O {[%emt 0:00:10]} 17. Qg5 {[%emt 0:00:22]} Qd7 {[%emt 0:01:50]} 18. Qh4 {[%emt 0:02:06]} (18. Qe3 $15) 18... Rdg8 $17 {[%emt 0:01:47] Threatens to win with ...f5.} 19. Kh1 {[%emt 0:01:24]} f5 {[%emt 0:07:34]} ({Black should try} 19... Rg6 $1 $17 {Strongly threatening ...f5.} 20. Re3 f5) 20. f4 $1 $15 {[%emt 0:00:49]} Qg7 {[%emt 0:04:54][%csl Gg8][%cal Rg7g2]} 21. Re2 {[%emt 0:03:46]} exf4 {[%emt 0:00:30]} 22. Bxf4 {[%emt 0:00:09]} Qxb2 {[%emt 0:06:57]} 23. Rae1 {[%emt 0:00:11]} Qd4 {[%emt 0:04:06]} (23... Qxa2 $6 24. Bxd6 cxd6 25. Qd4 $11) 24. Rf1 {[%emt 0:00:57]} Kb8 {[%emt 0:01:41]} 25. Qf2 {[%emt 0:00:26]} Qd5 {[%emt 0:06:47]} 26. Bxd6 {[%emt 0:01:51]} Qxd6 {[%emt 0:00:04]} 27. Qf4 {[%emt 0:01:09]} Qa3 {[%emt 0:00:42]} 28. Qc4 {[%emt 0:01:21]} h4 {[%emt 0:07:28]} (28... Qa5 $15) 29. c3 {[%emt 0:02:50]} (29. Rxf5 $11 Re8 30. Rff2) 29... Rg3 {[%emt 0:01:50]} 30. Rb1 {[%emt 0:00:21] [#]} Rg6 $1 {[%emt 0:11:43]} 31. Reb2 {[%emt 0:00:17] [#]} (31. Rf1 $17) 31... b5 $1 $19 {[%emt 0:01:19]} 32. Qd4 {[%emt 0:01:08]} Re8 {[%emt 0:00:34][%cal Oe8e1]} 33. c4 {[%emt 0:17:16][%cal Rc4b5]} Rd6 {[%emt 0:00:50]} ({Better is} 33... Rge6 {aiming for ...Re1+.} 34. cxb5 axb5 35. Qxh4 Qxd3) 34. Qxh4 $17 {[%emt 0:00:16]} Rxd3 {[%emt 0:00:13]} 35. cxb5 {[%emt 0:01:21]} cxb5 {[%emt 0:01:03]} ({Much worse is} 35... axb5 $6 36. Qc4 Rxh3+ 37. gxh3 Qxh3+ 38. Kg1 Qg3+ 39. Rg2 Qe3+ 40. Rf2 (40. Kf1 $2 Qf3+ 41. Kg1 Re1+ 42. Rxe1 bxc4 $19) 40... Qg3+ 41. Rg2 Qe3+ 42. Rf2 (42. Kf1 $2 Qf3+ 43. Kg1 Re1+ 44. Rxe1 bxc4 $19) 42... Qg3+ 43. Rg2 $11) 36. Qh5 {[%emt 0:04:03]} (36. Qf4 $17) 36... Red8 $19 {[%emt 0:02:04]} 37. Rf2 {[%emt 0:04:58]} (37. Rc2 $17) 37... Rd2 {[%emt 0:04:28]} 38. Rxf5 {[%emt 0:12:03]} Qxa2 {[%emt 0:00:15] Black is much more active.} (38... Qd3 $17 39. Ra1 Qc3) 39. Rg1 {[%emt 0:00:08][%mdl 8192]} (39. Rfxb5+ $1 $11 {and White is okay.} axb5 40. Qxb5+ Kc8 41. Qb8+ Kd7 42. Qb5+ c6 43. Qb7+ Ke8 44. Re1+ Re2 45. Qxc6+ Rd7 46. Qc8+ Ke7 47. Qc5+ Kf6 48. Qc3+ Ke7 49. Qc5+ Ke6 50. Qc6+ Ke7 51. Qc5+) 39... b4 {[%emt 0:00:48]} (39... Qe6 $19 {and Black stays clearly on top. And now ...b4 would win.} 40. Qg4 Qb6) 40. Ra5 $2 {[%emt 0:01:31][%mdl 8192] This costs White the game.} (40. Rf4 $17 {was the crucial defense.} Qa4 41. Qc5) 40... Qc4 {[%emt 0:01:21]} 41. Rga1 {[%emt 0:35:04]} Qe4 {[%emt 0:05:29][%csl Gd2][%cal Re4g2]} 42. Qg5 {[%emt 0:00:00]} Rd1+ {[%emt 0:02:38]} 43. Kh2 {[%emt 0:00:00]} R1d5 44. Rxd5 {[%emt 0:00:00]} Rxd5 {[%emt 0:02:47] Weighted Error Value: White=0.55/Black=0.24 (precise)} 0-1

[Event "GER-chT States Women 2022"]
[Site "Braunfels"]
[Date "2022.06.17"]
[Round "2.5"]
[White "Kuckling, Hannah"]
[Black "Ries, Jutta"]
[Result "1/2-1/2"]
[ECO "B04"]
[WhiteElo "2070"]
[BlackElo "2015"]
[Annotator "NA RC"]
[PlyCount "89"]
[EventDate "2022.06.15"]
[EventType "swiss"]
[EventCountry "GER"]
[SourceTitle "playchess.com"]
[Source "ChessBase"]
[SourceQuality "1"]
[TimeControl "40/5400+30:1800+30"]

1. e4 {[%emt 0:00:02]} Nf6 {[%emt 0:01:59]} 2. e5 {[%emt 0:00:05]} Nd5 {[%emt 0:00:14]} 3. d4 {[%emt 0:00:11]} d6 {[%emt 0:00:08]} 4. Nf3 {[%emt 0:00:11]} g6 {[%emt 0:00:41]} 5. exd6 {[%emt 0:00:12]} cxd6 {[%emt 0:01:32]} 6. c4 {[%emt 0:00:08]} Nb6 {[%emt 0:00:08]} 7. Be3 {[%emt 0:00:26]} Bg7 {[%emt 0:00:31]} 8. Bd3 {[%emt 0:00:21]} Nc6 {[%emt 0:00:42]} 9. h3 {[%emt 0:00:09]} O-O {[%emt 0:00:35]} 10. Nc3 {[%emt 0:00:19]} Nb4 {[%emt 0:07:19]} 11. Be2 {[%emt 0:01:50]} d5 {[%emt 0:05:14]} 12. c5 {[%emt 0:01:53]} Nc4 {[%emt 0:10:09]} 13. Qb3 {[%emt 0:03:49]} Nxe3 {[%emt 0:06:24]} 14. fxe3 {[%emt 0:00:18]} Nc6 {[%emt 0:03:24]} 15. Qxd5 {[%emt 0:02:05]} Qc7 {[%emt 0:01:34]} 16. O-O {[%emt 0:06:14]} e5 {[%emt 0:21:53]} 17. Qc4 {[%emt 0:21:00]} exd4 {[%emt 0:10:23]} 18. exd4 {[%emt 0:00:15]} Qg3 {[%emt 0:07:51]} 19. Ne4 {[%emt 0:16:29]} Qf4 {[%emt 0:03:28]} 20. Nfg5 {[%emt 0:01:50]} Qe3+ {[%emt 0:00:28]} 21. Kh1 {[%emt 0:00:09]} Bf5 {[%emt 0:13:55]} 22. d5 {[%emt 0:08:17]} Ne5 {[%emt 0:01:47]} 23. Qc2 {[%emt 0:03:22]} Qxg5 {[%emt 0:00:42]} 24. Nxg5 {[%emt 0:01:44]} Bxc2 {[%emt 0:00:01]} 25. Rac1 {[%emt 0:00:09]} Bd3 {[%emt 0:00:43]} 26. Bxd3 {[%emt 0:02:09]} Nxd3 {[%emt 0:00:01]} 27. Rc2 {[%emt 0:00:01]} h6 {[%emt 0:00:23]} 28. Ne4 {[%emt 0:00:09]} Rad8 {[%emt 0:00:59]} 29. d6 {[%emt 0:01:24]} Rfe8 {[%emt 0:00:33]} 30. Nf2 $19 {[%emt 0:05:42]} Nxf2+ {[%emt 0:00:21]} 31. Rfxf2 {[%emt 0:00:16]} Rd7 {[%emt 0:00:50]} 32. b4 {[%emt 0:00:24]} a6 {[%emt 0:00:17]} 33. a4 {[%emt 0:00:18]} Re4 {[%emt 0:00:33]} 34. b5 {[%emt 0:00:21]} Be5 {[%emt 0:01:01]} 35. g4 {[%emt 0:00:27]} axb5 {[%emt 0:00:33]} 36. axb5 {[%emt 0:00:06]} Re1+ {[%emt 0:00:34]} 37. Kg2 {[%emt 0:00:05]} Rd8 {[%emt 0:00:37]} 38. Rfd2 {[%emt 0:02:51]} Bf4 {[%emt 0:00:24]} 39. Rd4 {[%emt 0:00:51]} Be5 {[%emt 0:00:35]} 40. Rd5 {[%emt 0:00:46]} Bf4 {[%emt 0:00:31]} 41. Rc4 {[%emt 0:31:38]} g5 {[%emt 0:16:19]} 42. c6 {[%emt 0:00:00]} bxc6 {[%emt 0:00:57]} 43. bxc6 {[%emt 0:00:00]} Bxd6 {[%emt 0:07:43]} 44. Rcd4 {[%emt 0:00:00]} Re6 {[%emt 0:04:03]} 45. c7 {[%emt 0:00:00]} 1/2-1/2

[Event "GER-chT States Women 2022"]
[Site "Braunfels"]
[Date "2022.06.17"]
[Round "2.6"]
[White "Werner, Rosalie"]
[Black "Hess, Olena"]
[Result "0-1"]
[ECO "C41"]
[WhiteElo "1712"]
[BlackElo "2055"]
[Annotator "NA RC"]
[PlyCount "104"]
[EventDate "2022.06.15"]
[EventType "swiss"]
[EventCountry "GER"]
[SourceTitle "playchess.com"]
[Source "ChessBase"]
[SourceQuality "1"]
[TimeControl "40/5400+30:1800+30"]

1. e4 {[%emt 0:00:03]} d6 {[%emt 0:00:05]} 2. d4 {[%emt 0:00:05]} Nf6 {[%emt 0:00:08]} 3. Nc3 {[%emt 0:00:08]} e5 {[%emt 0:00:18]} 4. Nf3 {[%emt 0:00:07]} Nbd7 {[%emt 0:00:20]} 5. Bc4 {[%emt 0:00:22]} Be7 {[%emt 0:00:14]} 6. O-O {[%emt 0:00:23]} O-O {[%emt 0:00:06]} 7. Re1 {[%emt 0:00:56]} c6 {[%emt 0:00:14]} 8. a4 {[%emt 0:01:44]} Qc7 {[%emt 0:00:54] 8...h6 is becoming the main line.} 9. Bb3 {[%emt 0:01:51]} b6 {[%emt 0:03:07] [#]} 10. Qd3 $146 {[%emt 0:05:57]} ({Predecessor:} 10. h3 a6 11. Be3 exd4 12. Nxd4 Nc5 13. Ba2 Bd7 14. Qf3 b5 15. Bf4 b4 16. Nd1 Rfe8 {0-1 (51) Isha,S (1989)-Mulder,B (2149) Hofheim 2019}) 10... exd4 {[%emt 0:07:59]} 11. Qxd4 {[%emt 0:02:37]} Nc5 {[%emt 0:01:54]} 12. h3 {[%emt 0:07:33]} Nxb3 {[%emt 0:03:29]} 13. cxb3 {[%emt 0:00:08]} Be6 {[%emt 0:24:58]} 14. b4 {[%emt 0:02:01]} d5 {[%emt 0:05:02]} 15. e5 {[%emt 0:07:49]} Ne8 {[%emt 0:05:19]} 16. Bf4 {[%emt 0:03:17]} Rd8 {[%emt 0:04:02]} 17. Bg5 {[%emt 0:14:26]} h6 {[%emt 0:03:15]} 18. Bxe7 {[%emt 0:04:56]} Qxe7 {[%emt 0:00:05]} 19. a5 {[%emt 0:02:42]} c5 {[%emt 0:01:24]} 20. bxc5 {[%emt 0:00:20]} bxc5 {[%emt 0:00:24]} 21. Qd3 {[%emt 0:02:00]} Nc7 {[%emt 0:01:37]} 22. Rec1 {[%emt 0:05:05]} Rb8 {[%emt 0:10:04]} 23. Na4 {[%emt 0:08:21]} c4 $1 {[%emt 0:02:33]} 24. Qd2 {[%emt 0:02:29]} Rfd8 {[%emt 0:16:24]} 25. Nd4 {[%emt 0:02:02]} Bd7 {[%emt 0:00:07]} 26. f4 {[%emt 0:03:04]} Bxa4 {[%emt 0:01:02]} 27. Rxa4 $17 {[%emt 0:00:11]} Ne6 {[%emt 0:03:09]} 28. Nxe6 {[%emt 0:06:41]} fxe6 {[%emt 0:00:02]} 29. Qd4 {[%emt 0:00:48]} Rb3 {[%emt 0:00:55]} 30. Ra2 {[%emt 0:04:08]} Rd3 {[%emt 0:00:26]} 31. Qf2 {[%emt 0:00:40]} Rf8 {[%emt 0:00:55]} 32. g3 {[%emt 0:02:25]} g5 {[%emt 0:01:47]} 33. Kh2 {[%emt 0:01:13]} Qf7 {[%emt 0:00:57]} 34. Rf1 {[%emt 0:02:22]} Qh5 {[%emt 0:02:00]} 35. Ra3 {[%emt 0:08:01]} Rxa3 {[%emt 0:00:42]} 36. bxa3 {[%emt 0:00:05]} Qf7 {[%emt 0:00:12]} 37. Qb2 {[%emt 0:00:44]} Qc7 {[%emt 0:00:34]} 38. Qb5 {[%emt 0:01:07]} d4 {[%emt 0:00:39]} 39. f5 {[%emt 0:00:25]} Rxf5 {[%emt 0:01:35]} 40. Rxf5 {[%emt 0:00:15]} exf5 {[%emt 0:00:02]} 41. Qe8+ {[%emt 0:01:58]} Kg7 {[%emt 0:09:46]} 42. Qe6 {[%emt 0:05:35]} Qd8 {[%emt 0:13:29]} 43. Qxf5 {[%emt 0:06:14]} d3 {[%emt 0:02:40]} 44. e6 {[%emt 0:04:20]} Qf6 {[%emt 0:00:49]} 45. Qd5 {[%emt 0:01:11]} d2 {[%emt 0:03:06]} 46. Qd7+ {[%emt 0:02:04]} Kf8 {[%emt 0:00:03]} 47. Qc8+ {[%emt 0:02:09]} Kg7 {[%emt 0:00:56]} 48. Qd7+ {[%emt 0:01:44]} Kg6 {[%emt 0:01:35]} 49. e7 {[%emt 0:01:12]} Qf2+ {[%emt 0:00:07]} 50. Kh1 {[%emt 0:00:12]} Qe1+ {[%emt 0:00:16]} 51. Kh2 {[%emt 0:02:35]} Qe2+ {[%emt 0:00:08]} 52. Kh1 {[%emt 0:00:32]} d1=Q+ {[%emt 0:00:07]} 0-1